fUST/lending_fUST_20241227
["ID","MTS","AMOUNT","RATE_DAILY","PERIOD"]
[346751444,1735262961751,-500.0,0.00010931,2]
[346751445,1735262961791,-500.0,0.00010931,2]
[346751446,1735262961829,-3147.17,0.00010931,2]
[346751447,1735262961863,-500.0,0.00010931,2]
[346751448,1735262961896,-2523.63,0.00010931,2]
[346751449,1735262961929,-517.44,0.00010931,2]
[346751450,1735262961962,-500.0,0.00010932,2]
[346751451,1735262961995,-500.0,0.00010932,2]
[346751452,1735262962028,-500.0,0.00010932,2]
[346751453,1735262962061,-501.54249789,0.00010932,2]
[346751454,1735262962094,-500.0,0.00010932,2]
[346751455,1735262962127,-500.0,0.00010932,2]
[346751456,1735262962159,-502.27882223,0.00010932,2]
[346751457,1735262962191,-500.0,0.00010932,2]
[346751458,1735262962226,-500.0,0.00010932,2]
[346751459,1735262962259,-523.14947342,0.00010932,2]
[346751460,1735262962291,-355.20382433,0.00010932,2]
[346751461,1735262962325,-500.0,0.00010932,2]
[346751462,1735262962358,-500.0,0.00010932,2]
[346751463,1735262962391,-500.0,0.00010932,2]
[346751464,1735262962428,-500.0,0.00010932,2]
[346751465,1735262962464,-500.0,0.00010932,2]
[346751466,1735262962499,-500.0,0.00010932,2]
[346751467,1735262962536,-500.0,0.00010932,2]
[346751468,1735262962570,-500.0,0.00010932,2]
[346751469,1735262962609,-500.0,0.00010932,2]
[346751470,1735262962647,-500.0,0.00010932,2]
[346751471,1735262962686,-500.0,0.00010932,2]
[346751472,1735262962723,-500.0,0.00010932,2]
[346751473,1735262962758,-500.0,0.00010932,2]
[346751474,1735262962795,-500.0,0.00010932,2]
[346751475,1735262962828,-500.0,0.00010932,2]
[346751476,1735262962862,-500.0,0.00010932,2]
[346751477,1735262962898,-659.45,0.00010932,2]
[346751478,1735262962935,-500.0,0.00010932,2]
[346751479,1735262962972,-532.02,0.00010932,2]
[346751480,1735262963008,-639.45,0.00010932,2]
[346751481,1735262963043,-500.0,0.00010932,2]
[346751482,1735262963079,-500.0,0.00010932,2]
[346751483,1735262963113,-562.89,0.00010932,2]
[346751484,1735262963150,-500.0,0.00010932,2]
[346751485,1735262963186,-2675.8,0.00010932,2]
[346751486,1735262963220,-500.0,0.00010932,2]
[346751487,1735262963255,-500.0,0.00010932,2]
[346751488,1735262963290,-500.0,0.00010932,2]
[346751489,1735262963331,-540.07,0.00010932,2]
[346751490,1735262963379,-500.0,0.00010932,2]
[346751491,1735262963423,-500.0,0.00010932,2]
[346751492,1735262963464,-500.0,0.00010932,2]
[346751493,1735262963583,-717.58,0.00010932,2]
[346751494,1735262963622,-225.30154097,0.00010932,2]
[346751495,1735262963660,-500.0,0.00010932,2]
[346751496,1735262963696,-500.0,0.00010932,2]
[346751497,1735262963732,-500.0,0.00010932,2]
[346751498,1735262963767,-500.0,0.00010932,2]
[346751499,1735262963803,-641.53,0.00010932,2]
[346751500,1735262963836,-621.33,0.00010932,2]
[346751501,1735262963872,-500.0,0.00010932,2]
[346751502,1735262963905,-500.0,0.00010932,2]
[346751503,1735262963943,-500.0,0.00010932,2]
[346751504,1735262963980,-502.52,0.00010932,2]
[346751505,1735262964016,-500.0,0.00010932,2]
[346751506,1735262964054,-500.0,0.00010932,2]
[346751507,1735262964095,-500.0,0.00010932,2]
[346751508,1735262964133,-500.0,0.00010933,2]
[346751509,1735262964171,-500.0,0.00010933,2]
[346751510,1735262964207,-503.68518393,0.00010933,2]
[346751511,1735262964245,-702.66,0.00010933,2]
[346751512,1735262964284,-504.06530436,0.00010933,2]
[346751513,1735262964325,-1028.22,0.00010933,2]
[346751514,1735262964364,-500.0,0.00010933,2]
[346751515,1735262964401,-500.0,0.00010933,2]
[346751516,1735262964438,-500.0,0.00010933,2]
[346751517,1735262964473,-2675.8,0.00010933,2]
[346751518,1735262964512,-500.0,0.00010933,2]
[346751519,1735262964549,-500.0,0.00010933,2]
[346751520,1735262964584,-500.0,0.00010933,2]
[346751521,1735262964622,-5872.86316994,0.00010933,2]
[346751522,1735262964816,-3549.96683006,0.00010933,2]
[346751523,1735262964838,-500.0,0.00010933,2]
[346751524,1735262964859,-500.0,0.00010934,2]
[346751525,1735262964882,-500.0,0.00010934,2]
[346751526,1735262964902,-500.0,0.00010934,2]
[346751527,1735262964923,-500.0,0.00010934,2]
[346751528,1735262964943,-500.0,0.00010934,2]
[346751529,1735262964963,-516.65128956,0.00010934,2]
[346751530,1735262964984,-500.0,0.00010934,2]
[346751531,1735262965005,-500.0,0.00010934,2]
[346751532,1735262965025,-500.0,0.00010934,2]
[346751533,1735262965046,-500.0,0.00010934,2]
[346751534,1735262965066,-500.0,0.00010934,2]
[346751535,1735262965087,-500.0,0.00010934,2]
[346751536,1735262965107,-500.0,0.00010934,2]
[346751537,1735262965128,-500.0,0.00010934,2]
[346751538,1735262965148,-545.8,0.00010934,2]
[346751539,1735262965169,-500.0,0.00010934,2]
[346751540,1735262965190,-500.0,0.00010934,2]
[346751541,1735262965210,-500.0,0.00010934,2]
[346751542,1735262965232,-500.0,0.00010934,2]
[346751543,1735262965253,-522.19,0.00010934,2]
[346751544,1735262965274,-500.0,0.00010934,2]
[346751545,1735262965294,-500.0,0.00010934,2]
[346751546,1735262965314,-337.39,0.00010934,2]
[346751547,1735262965335,-500.0,0.00010934,2]
[346751548,1735262965355,-216.31983927,0.00010934,2]
[346751549,1735262965375,-500.0,0.00010934,2]
[346751550,1735262965481,-500.0,0.00010934,2]
[346751551,1735262965506,-500.0,0.00010934,2]
[346751552,1735262965530,-500.0,0.00010934,2]
[346751553,1735262965552,-316.45,0.00010934,2]
[346751554,1735262965574,-622.93,0.00010934,2]
[346751555,1735262965595,-253.71,0.00010934,2]
[346751556,1735262965617,-500.0,0.00010934,2]
[346751557,1735262965639,-500.0,0.00010934,2]
[346751558,1735262965660,-310.3,0.00010934,2]
[346751559,1735262965681,-500.0,0.00010934,2]
[346751560,1735262965705,-500.0,0.00010934,2]
[346751561,1735262965726,-500.0,0.00010934,2]
[346751562,1735262965747,-500.0,0.00010934,2]
[346751563,1735262965768,-575.4,0.00010934,2]
[346751564,1735262965789,-500.0,0.00010934,2]
[346751565,1735262965811,-500.0,0.00010934,2]
[346751566,1735262965832,-500.0,0.00010934,2]
[346751567,1735262965852,-500.0,0.00010934,2]
[346751568,1735262965873,-500.0,0.00010934,2]
[346751569,1735262965894,-500.0,0.00010934,2]
[346751570,1735262965914,-500.0,0.00010934,2]
[346751571,1735262965936,-500.0,0.00010934,2]
[346751572,1735262965957,-500.0,0.00010934,2]
[346751573,1735262965977,-286.89670889,0.00010934,2]
[346751574,1735262965997,-500.0,0.00010934,2]
[346751575,1735262966017,-500.0,0.00010934,2]
[346751576,1735262966038,-500.0,0.00010934,2]
[346751577,1735262966059,-262.56,0.00010934,2]
[346751578,1735262966080,-500.0,0.00010934,2]
[346751579,1735262966101,-500.0,0.00010934,2]
[346751580,1735262966123,-484.52,0.00010934,2]
[346751581,1735262966147,-500.0,0.00010934,2]
[346751582,1735262966172,-281.9860327,0.00010934,2]
[346751583,1735262966192,-505.31323867,0.00010934,2]
[346751584,1735262966213,-500.0,0.00010934,2]
[346751585,1735262966234,-500.0,0.00010934,2]
[346751586,1735262966258,-500.0,0.00010934,2]
[346751587,1735262966278,-500.0,0.00010934,2]
[346751588,1735262966302,-500.0,0.00010934,2]
[346751589,1735262966323,-617.36,0.00010934,2]
[346751590,1735262966343,-500.0,0.00010934,2]
[346751591,1735262966364,-500.0,0.00010934,2]
[346751592,1735262966386,-500.0,0.00010934,2]
[346751593,1735262966406,-500.0,0.00010934,2]
[346751594,1735262966427,-500.0,0.00010934,2]
[346751595,1735262966448,-500.0,0.00010934,2]
[346751596,1735262966468,-521.58793564,0.00010934,2]
[346751597,1735262966491,-500.0,0.00010934,2]
[346751598,1735262966511,-500.0,0.00010934,2]
[346751599,1735262966532,-500.0,0.00010934,2]
[346751600,1735262966553,-500.0,0.00010934,2]
[346751601,1735262966574,-500.0,0.00010934,2]
[346751602,1735262966595,-500.0,0.00010934,2]
[346751603,1735262966616,-500.0,0.00010934,2]
[346751604,1735262966638,-500.0,0.00010934,2]
[346751605,1735262966658,-500.0,0.00010934,2]
[346751606,1735262966678,-644.41460179,0.00010934,2]
[346751607,1735262966700,-2675.8,0.00010934,2]
[346751608,1735262966720,-500.0,0.00010934,2]
[346751609,1735262966741,-500.0,0.00010934,2]
[346751610,1735262966762,-500.0,0.00010934,2]
[346751611,1735262966785,-500.0,0.00010934,2]
[346751612,1735262966808,-500.0,0.00010934,2]
[346751613,1735262966831,-500.0,0.00010934,2]
[346751614,1735262966856,-500.0,0.00010934,2]
[346751615,1735262966876,-500.0,0.00010934,2]
[346751616,1735262966899,-500.0,0.00010934,2]
[346751617,1735262966925,-1135.51,0.00010934,2]
[346751618,1735262966946,-560.96,0.00010934,2]
[346751619,1735262967041,-500.0,0.00010934,2]
[346751620,1735262967072,-500.0,0.00010934,2]
[346751621,1735262967097,-500.0,0.00010934,2]
[346751622,1735262967121,-500.0,0.00010934,2]
[346751623,1735262967143,-500.0,0.00010935,2]
[346751624,1735262967164,-2675.8,0.00010935,2]
[346751625,1735262967186,-500.0,0.00010935,2]
[346751626,1735262967207,-500.0,0.00010935,2]
[346751627,1735262967227,-503.34026536,0.00010936,2]
[346751628,1735262967248,-500.0,0.00010936,2]
[346751629,1735262967269,-500.0,0.00010936,2]
[346751630,1735262967293,-500.0,0.00010936,2]
[346751631,1735262967313,-500.0,0.00010936,2]
[346751632,1735262967334,-500.0,0.00010936,2]
[346751633,1735262967358,-500.0,0.00010936,2]
[346751634,1735262967381,-500.0,0.00010936,2]
[346751635,1735262967403,-500.0,0.00010936,2]
[346751636,1735262967425,-500.0,0.00010936,2]
[346751637,1735262967446,-500.0,0.00010936,2]
[346751638,1735262967468,-500.0,0.00010936,2]
[346751639,1735262967492,-500.0,0.00010936,2]
[346751640,1735262967514,-500.0,0.00010936,2]
[346751641,1735262967536,-500.0,0.00010936,2]
[346751642,1735262967557,-601.94,0.00010936,2]
[346751643,1735262967581,-500.0,0.00010936,2]
[346751644,1735262967602,-500.0,0.00010936,2]
[346751645,1735262967625,-500.0,0.00010936,2]
[346751646,1735262967646,-500.0,0.00010936,2]
[346751647,1735262967670,-500.0,0.00010936,2]
[346751648,1735262967691,-500.0,0.00010936,2]
[346751649,1735262967713,-500.0,0.00010936,2]
[346751650,1735262967735,-500.0,0.00010936,2]
[346751651,1735262967756,-500.0,0.00010936,2]
[346751652,1735262967779,-500.0,0.00010936,2]
[346751653,1735262967800,-500.0,0.00010936,2]
[346751654,1735262967822,-500.0,0.00010936,2]
[346751655,1735262967842,-500.0,0.00010936,2]
[346751656,1735262967863,-566.79,0.00010936,2]
[346751657,1735262967884,-500.0,0.00010936,2]
[346751658,1735262967904,-500.0,0.00010936,2]
[346751659,1735262967925,-500.0,0.00010936,2]
[346751660,1735262967946,-152.69588417,0.00010936,2]
[346751661,1735262967966,-349.91892871,0.00010936,2]
[346751662,1735262967988,-500.0,0.00010936,2]
[346751663,1735262968009,-500.0,0.00010936,2]
[346751664,1735262968031,-500.0,0.00011098,2]
[346751665,1735262968053,-629.63,0.00011098,2]
[346751666,1735262968076,-522.17,0.00011205,2]
[346751667,1735262968097,-500.0,0.00011205,2]
[346751668,1735262968120,-500.0,0.00011205,2]
[346751669,1735262968143,-500.0,0.00011205,2]
[346751670,1735262968164,-500.0,0.00011205,2]
[346751671,1735262968187,-3147.17,0.00011205,2]
[346751672,1735262968210,-515.72,0.00011205,2]
[346751673,1735262968236,-2523.63,0.00011205,2]
[346751674,1735262968257,-500.0,0.00011206,2]
[346751675,1735262968279,-500.0,0.00011206,2]
[346751676,1735262968302,-500.0,0.00011206,2]
[346751677,1735262968324,-607.34,0.00011206,2]
[346751678,1735262968345,-500.0,0.00011206,2]
[346751679,1735262968367,-500.0,0.00011206,2]
[346751680,1735262968390,-500.0,0.00011206,2]
[346751681,1735262968413,-515.72,0.00011206,2]
[346751682,1735262968436,-500.0,0.00011206,2]
[346751683,1735262968461,-500.0,0.00011206,2]
[346751684,1735262968564,-500.0,0.00011206,2]
[346751685,1735262968587,-348.99,0.00011206,2]
[346751686,1735262968610,-500.0,0.00011206,2]
[346751687,1735262968632,-500.0,0.00011206,2]
[346751688,1735262968654,-500.0,0.00011206,2]
[346751689,1735262968676,-500.0,0.00011206,2]
[346751690,1735262968699,-659.45,0.00011206,2]
[346751691,1735262968721,-532.02,0.00011206,2]
[346751692,1735262968748,-500.0,0.00011206,2]
[346751693,1735262968769,-500.0,0.00011206,2]
[346751694,1735262968791,-500.0,0.00011206,2]
[346751695,1735262968812,-500.0,0.00011206,2]
[346751696,1735262968834,-540.07,0.00011206,2]
[346751697,1735262968856,-500.0,0.00011206,2]
[346751698,1735262968878,-500.0,0.00011206,2]
[346751699,1735262968900,-717.58,0.00011206,2]
[346751700,1735262968922,-500.0,0.00011206,2]
[346751701,1735262968944,-172.32,0.00011206,2]
[346751702,1735262968966,-500.0,0.00011206,2]
[346751703,1735262968987,-500.0,0.00011206,2]
[346751704,1735262969008,-500.0,0.00011206,2]
[346751705,1735262969030,-502.52,0.00011206,2]
[346751706,1735262969052,-500.0,0.00011206,2]
[346751707,1735262969073,-500.0,0.00011206,2]
[346751708,1735262969095,-451.12,0.00011206,2]
[346751709,1735262969116,-702.66,0.00011207,2]
[346751710,1735262969137,-1028.22,0.00011207,2]
[346751711,1735262969157,-500.0,0.00011207,2]
[346751712,1735262969179,-500.0,0.00011207,2]
[346751713,1735262969200,-500.0,0.00011207,2]
[346751714,1735262969220,-2675.8,0.00011207,2]
[346751715,1735262969241,-2675.8,0.00011207,2]
[346751716,1735262969263,-500.0,0.00011207,2]
[346751717,1735262969284,-500.0,0.00011207,2]
[346751718,1735262969304,-500.0,0.00011207,2]
[346751719,1735262969326,-6416.89404073,0.00011207,2]
[346751720,1735262969409,-3914.15920765,0.00010555,2]
[346751721,1735262969433,-3005.93595927,0.00011207,2]
[346751722,1735262969455,-500.0,0.00011207,2]
[346751723,1735262969475,-500.0,0.00011208,2]
[346751724,1735262969498,-500.0,0.00011208,2]
[346751725,1735262969519,-500.0,0.00011208,2]
[346751726,1735262969542,-505.34516855,0.00011208,2]
[346751727,1735262969564,-500.0,0.00011208,2]
[346751728,1735262969585,-500.0,0.00011208,2]
[346751729,1735262969606,-500.0,0.00011208,2]
[346751730,1735262969626,-525.1,0.00011208,2]
[346751731,1735262969646,-511.26,0.00011208,2]
[346751732,1735262969668,-500.0,0.00011208,2]
[346751733,1735262969688,-500.0,0.00011208,2]
[346751734,1735262969710,-500.0,0.00011208,2]
[346751735,1735262969732,-500.0,0.00011208,2]
[346751736,1735262969753,-274.01,0.00011208,2]
[346751737,1735262969773,-500.0,0.00011208,2]
[346751738,1735262969795,-471.22592098,0.00011208,2]
[346751739,1735262969815,-354.72,0.00011208,2]
[346751740,1735262969834,-500.0,0.00011208,2]
[346751741,1735262969853,-500.0,0.00011208,2]
[346751742,1735262969874,-500.0,0.00011208,2]
[346751743,1735262969894,-500.0,0.00011208,2]
[346751744,1735262969982,-500.0,0.00011208,2]
[346751745,1735262970002,-500.0,0.00011208,2]
[346751746,1735262970022,-500.0,0.00011208,2]
[346751747,1735262970043,-500.0,0.00011208,2]
[346751748,1735262970066,-500.0,0.00011208,2]
[346751749,1735262970087,-500.0,0.00011208,2]
[346751750,1735262970108,-500.0,0.00011208,2]
[346751751,1735262970130,-500.0,0.00011208,2]
[346751752,1735262970150,-500.0,0.00011208,2]
[346751753,1735262970172,-500.0,0.00011208,2]
[346751754,1735262970191,-500.0,0.00011208,2]
[346751755,1735262970211,-240.31729168,0.00011208,2]
[346751756,1735262970231,-500.0,0.00011208,2]
[346751757,1735262970251,-500.0,0.00011208,2]
[346751758,1735262970271,-500.0,0.00011208,2]
[346751759,1735262970292,-500.0,0.00011208,2]
[346751760,1735262970313,-500.0,0.00011208,2]
[346751761,1735262970337,-500.0,0.00011208,2]
[346751762,1735262970359,-150.98298675,0.00011208,2]
[346751763,1735262970381,-500.0,0.00011208,2]
[346751764,1735262970402,-535.07986977,0.00011208,2]
[346751765,1735262971118,-500.0,0.00010658,2]
[346751766,1735262971140,-500.0,0.00010658,2]
[346751767,1735262971161,-528.897756,0.0001066,2]
[346751768,1735262971184,-500.0,0.0001066,2]
[346751769,1735262971206,-500.0,0.0001066,2]
[346751770,1735262971227,-500.0,0.0001066,2]
[346751771,1735262971248,-274.43,0.00010932,2]
[346751772,1735262971270,-500.0,0.00010934,2]
[346751773,1735262971290,-7.51810752,0.00011208,2]
[346751774,1735262971311,-500.0,0.00011208,2]
[346751775,1735262971333,-500.0,0.00011208,2]
[346751776,1735262971354,-500.0,0.00011208,2]
[346751777,1735262971377,-500.0,0.00011208,2]
[346751778,1735262971398,-2675.8,0.00011208,2]
[346751779,1735262971420,-500.0,0.00011208,2]
[346751780,1735262971442,-500.0,0.00011208,2]
[346751781,1735262971463,-500.0,0.00011208,2]
[346751782,1735262971484,-607.27,0.00011208,2]
[346751783,1735262971510,-1135.51,0.00011208,2]
[346751784,1735262971599,-500.0,0.00011208,2]
[346751785,1735262971621,-500.0,0.00011208,2]
[346751786,1735262971642,-500.0,0.00011208,2]
[346751787,1735262971664,-500.0,0.00011208,2]
[346751788,1735262971686,-500.0,0.00011209,2]
[346751789,1735262971708,-500.0,0.00011209,2]
[346751790,1735262971729,-289.41,0.00011209,2]
[346751791,1735262971750,-500.0,0.0001121,2]
[346751792,1735262971771,-500.0,0.0001121,2]
[346751793,1735262971792,-500.0,0.0001121,2]
[346751794,1735262971812,-500.0,0.0001121,2]
[346751795,1735262971832,-500.0,0.0001121,2]
[346751796,1735262971854,-500.0,0.0001121,2]
[346751797,1735262971875,-500.0,0.0001121,2]
[346751798,1735262971896,-500.0,0.0001121,2]
[346751799,1735262971916,-500.0,0.0001121,2]
[346751800,1735262971938,-500.0,0.0001121,2]
[346751801,1735262971959,-500.0,0.0001121,2]
[346751802,1735262971979,-500.0,0.0001121,2]
[346751803,1735262972000,-500.0,0.0001121,2]
[346751804,1735262972021,-500.0,0.0001121,2]
[346751805,1735262972042,-500.0,0.0001121,2]
[346751806,1735262972063,-546.27,0.0001121,2]
[346751807,1735262972084,-187.14908748,0.0001121,2]
[346751808,1735262972106,-640.58,0.0001121,2]
[346751809,1735262972132,-500.0,0.00011372,2]
[346751810,1735262972154,-522.17,0.00011479,2]
[346751811,1735262972175,-500.0,0.00011479,2]
[346751812,1735262972196,-500.0,0.00011479,2]
[346751813,1735262972218,-500.0,0.00011479,2]
[346751814,1735262972256,-500.0,0.00011479,2]
[346751815,1735262972291,-1550.25233988,0.00011479,2]
[346751816,1735262998608,-764.48470145,0.00010207,2]
[346751855,1735263032355,-500.0,9.728e-05,2]
[346751858,1735263032365,-502.46531293,9.728e-05,2]
[346751860,1735263032374,-500.0,9.728e-05,2]
[346751862,1735263032384,-504.49492047,9.728e-05,2]
[346751864,1735263032393,-500.0,9.728e-05,2]
[346751866,1735263032403,-500.0,0.00010002,2]
[346751868,1735263032413,-543.30864846,0.00010002,2]
[346751870,1735263032422,-500.0,0.00010002,2]
[346751871,1735263032431,-177.35396105,0.00010207,2]
[346751873,1735263032440,-500.0,0.00010276,2]
[346751876,1735263032450,-500.0,0.0001055,2]
[346751877,1735263032459,-300.0,0.00010657,2]
[346751879,1735263032468,-408.22658519,0.00010657,2]
[346751881,1735263032477,-300.0,0.00010657,2]
[346751884,1735263032487,-638.53,0.00010657,2]
[346751886,1735263032497,-508.27,0.00010657,2]
[346751888,1735263032507,-500.0,0.00010658,2]
[346751890,1735263032518,-500.0,0.00010658,2]
[346751892,1735263032528,-501.06736431,0.00010658,2]
[346751894,1735263032537,-500.0,0.00010658,2]
[346751896,1735263032547,-500.0,0.00010658,2]
[346751898,1735263032556,-500.0,0.00010658,2]
[346751900,1735263032565,-555.35,0.00010658,2]
[346751902,1735263032574,-500.0,0.00010658,2]
[346751904,1735263032583,-500.0,0.00010658,2]
[346751906,1735263032593,-500.0,0.00010658,2]
[346751908,1735263032602,-500.0,0.00010658,2]
[346751910,1735263032611,-506.51402263,0.00010658,2]
[346751912,1735263032621,-500.0,0.00010658,2]
[346751914,1735263032631,-650.09,0.00010658,2]
[346751916,1735263032640,-504.6476068,0.00010658,2]
[346751918,1735263032649,-501.56023968,0.00010658,2]
[346751920,1735263032666,-942.24,0.00010658,2]
[346751922,1735263032675,-500.59186223,0.00010658,2]
[346751924,1735263032685,-501.10560245,0.00010658,2]
[346751925,1735263032695,-502.69678028,0.00010658,2]
[346751928,1735263032704,-500.0,0.0001066,2]
[346751930,1735263032715,-503.26539064,0.0001066,2]
[346751932,1735263032725,-500.0,0.0001066,2]
[346751934,1735263032735,-500.0,0.0001066,2]
[346751936,1735263032744,-500.0,0.0001066,2]
[346751938,1735263032754,-500.0,0.0001066,2]
[346751940,1735263032764,-500.0,0.0001066,2]
[346751941,1735263032773,-500.0,0.0001066,2]
[346751943,1735263032782,-407.61463438,0.0001066,2]
[346751945,1735263032792,-349.96633373,0.0001066,2]
[346751947,1735263032801,-500.0,0.0001066,2]
[346751950,1735263032811,-502.56687461,0.0001066,2]
[346751952,1735263032820,-500.0,0.0001066,2]
[346751954,1735263032829,-500.0,0.0001066,2]
[346751955,1735263032839,-500.0,0.0001066,2]
[346751958,1735263032848,-500.0,0.0001066,2]
[346751959,1735263032857,-500.0,0.0001066,2]
[346751962,1735263032866,-502.41870554,0.0001066,2]
[346751964,1735263032876,-503.40582529,0.0001066,2]
[346751966,1735263032885,-500.8329503,0.0001066,2]
[346751967,1735263032894,-502.99366075,0.0001066,2]
[346751970,1735263032906,-502.67263193,0.0001066,2]
[346751971,1735263032916,-500.0,0.0001066,2]
[346751973,1735263032925,-502.07376304,0.0001066,2]
[346751976,1735263032935,-500.0,0.00010661,2]
[346751978,1735263032945,-500.0,0.00010662,2]
[346751980,1735263032954,-500.0,0.00010662,2]
[346751982,1735263032963,-500.0,0.00010662,2]
[346751984,1735263032972,-504.41391246,0.00010662,2]
[346751986,1735263032981,-500.48942463,0.00010662,2]
[346751988,1735263032991,-500.0,0.00010824,2]
[346751990,1735263033000,-638.53,0.00010931,2]
[346752002,1735263033110,-508.27,0.00010931,2]
[346752004,1735263033123,-500.0,0.00010932,2]
[346752006,1735263033133,-500.0,0.00010932,2]
[346752008,1735263033142,-555.35,0.00010932,2]
[346752010,1735263033151,-500.0,0.00010932,2]
[346752012,1735263033165,-151.61537631,0.00010932,2]
[346752015,1735263033175,-650.09,0.00010932,2]
[346752016,1735263033186,-942.24,0.00010932,2]
[346752018,1735263033196,-500.0,0.00010934,2]
[346752020,1735263033206,-500.0,0.00010934,2]
[346752022,1735263033216,-500.0,0.00010934,2]
[346752024,1735263033226,-500.0,0.00010934,2]
[346752026,1735263033235,-500.0,0.00010936,2]
[346752028,1735263033246,-500.0,0.00010936,2]
[346752030,1735263033255,-500.0,0.00010936,2]
[346752032,1735263033268,-500.0,0.00011098,2]
[346752034,1735263033278,-638.53,0.00011205,2]
[346752036,1735263033288,-508.27,0.00011205,2]
[346752038,1735263033297,-500.0,0.00011206,2]
[346752040,1735263033308,-500.0,0.00011206,2]
[346752042,1735263033318,-555.35,0.00011206,2]
[346752044,1735263033328,-254.86,0.00011206,2]
[346752046,1735263033337,-650.09,0.00011206,2]
[346752048,1735263033347,-942.24,0.00011206,2]
[346752050,1735263033356,-500.0,0.00011208,2]
[346752052,1735263033365,-500.0,0.00011208,2]
[346752054,1735263033375,-500.0,0.00011208,2]
[346752056,1735263033386,-500.0,0.00011208,2]
[346752058,1735263033395,-500.0,0.0001121,2]
[346752060,1735263033406,-503.18524684,0.0001121,2]
[346752062,1735263033417,-500.0,0.00011372,2]
[346752064,1735263033427,-1596.91766012,0.00011479,2]
[346752066,1735263033436,-1487.45981837,0.00011479,2]
[346752068,1735263033450,-1036.17018163,0.00011479,2]
[346752071,1735263033461,-638.53,0.00011479,2]
[346752072,1735263033471,-508.27,0.00011479,2]
[346752075,1735263033481,-500.0,0.0001148,2]
[346752077,1735263033491,-500.0,0.0001148,2]
[346752079,1735263033500,-500.0,0.0001148,2]
[346752081,1735263033510,-500.0,0.0001148,2]
[346752083,1735263033523,-500.0,0.0001148,2]
[346752085,1735263033533,-437.24596146,0.0001148,2]
[346752087,1735263033545,-62.75403854,0.0001148,2]
[346752089,1735263033555,-500.0,0.0001148,2]
[346752091,1735263033566,-500.0,0.0001148,2]
[346752093,1735263033575,-500.0,0.0001148,2]
[346752095,1735263033585,-500.0,0.0001148,2]
[346752096,1735263033596,-500.0,0.0001148,2]
[346752097,1735263033606,-500.0,0.0001148,2]
[346752098,1735263033616,-500.0,0.0001148,2]
[346752099,1735263033625,-500.0,0.0001148,2]
[346752100,1735263033634,-324.44278142,0.0001148,2]
[346752101,1735263033646,-175.55721858,0.0001148,2]
[346752102,1735263033658,-540.07,0.0001148,2]
[346752103,1735263033669,-500.0,0.0001148,2]
[346752104,1735263033679,-500.0,0.0001148,2]
[346752105,1735263033689,-717.58,0.0001148,2]
[346752106,1735263033700,-500.0,0.0001148,2]
[346752107,1735263033710,-500.0,0.0001148,2]